Cogmind - Beta 16 @@@ ROGUE MODE // 2025.12.28 @ 17:20:54 Player: GiggleBox Result: Destroyed by X-57 Shotgunner with High-powered Shotgun Performance ------------- Evolutions (3) 1500 Regions Visited (4) 800 Robots Destroyed (94) 470 Value Destroyed (2913) 2913 Prototype IDs (18) 360 Alien Tech Used (0) 0 Bonus (71) 71 TOTAL SCORE: 6114 Bonus ------- High Alert Combat Kills 71 Cogmind --------- Core Integrity 0/700 Matter 300/300 Energy 72/100 System Corruption 4% Temperature Cool (9) Movement Core (500) Ox9 Location -7/Factory Parts ------- > --- POWER (1) -------- (None) > --- PROPULSION (3) --- (None) > --- UTILITY (6) ------ Large Storage Unit Improved Signal Interpreter Advanced Terrain Scan Processor > --- WEAPON (3) ------- Powered Hammer Powered Hammer Axe > --- INVENTORY (15) --- Carbon-fiber Leg Carbon-fiber Leg Improved Titanium Leg High-capacity Matter Pod (200) Particle Charger Improved Light Armor Plating Remote Shield Component Analysis Suite Plasma Cannon Heavy Assault Rifle Subdweller Shrapnel Launcher Subdweller Shrapnel Launcher Heavy Rocket Launcher Great Maul Power Maul Peak State ------------ > --- POWER ------------ Improved Deuterium Engine > --- PROPULSION ------- Arachnoskeleton > --- UTILITY ---------- Cryofiber Web Coolant Injector Large Storage Unit Terrain Scanner Advanced Terrain Scan Processor > --- WEAPON ----------- Plasma Cannon Heavy Ion Cannon Powered Hammer > --- INVENTORY -------- Light Treads Light Treads Improved Treads High-capacity Matter Pod Particle Charger Heavy Armor Plating Remote Shield Component Analysis Suite Plasma Cannon Heavy Assault Rifle Subdweller Shrapnel Launcher Subdweller Shrapnel Launcher Powered Hammer Powered Hammer [Rating: 54] Favorites ----------- Power Ion Engine Engine Ion Engine Propulsion Improved Treads Treads Improved Treads Leg Carbon-fiber Leg Utility Large Storage Unit Device Seismic Detector Storage Large Storage Unit Processor Advanced Terrain Scan Processor Protection Hardened Light Armor Plating Weapon Assault Rifle Energy Cannon Plasma Cannon Ballistic Gun Assault Rifle Launcher Subdweller Shrapnel Launcher Impact Weapon Powered Hammer Slashing Weapon Mining Claw Build | -11 -10 -10 -8 -7 ------- Run | Yrd Mat Sub Mat Fac Slots Evolved 6 | . . . 4 2 Power . | . . . . . Propulsion 1 | . . . 1 . Utility 4 | . . . 3 1 Weapon 1 | . . . . 1 Parts Attached 69 | 8 4 7 26 24 Power 7 | 1 . 1 3 2 Engine 7 | 1 . 1 3 2 Core . | . . . . . Reactor . | . . . . . Propulsion 19 | 2 2 2 7 6 Treads 14 | 2 2 2 7 1 Leg 5 | . . . . 5 Wheel . | . . . . . Hover . | . . . . . Flight . | . . . . . Utility 26 | 2 1 3 8 12 Device 12 | 1 . 2 3 6 Storage 5 | 1 1 1 1 1 Processor 3 | . . . 1 2 Hackware . | . . . . . Protection 6 | . . . 3 3 Artifact . | . . . . . Weapon 17 | 3 1 1 8 4 Energy Gun . | . . . . . Energy Cannon 4 | . . . 3 1 Ballistic Gun 5 | 3 . 1 1 . Ballistic Cannon . | . . . . . Launcher 2 | . . . 2 . Special Weapon . | . . . . . Impact Weapon 3 | . . . 2 1 Slashing Weapon 3 | . 1 . . 2 Piercing Weapon . | . . . . . Special Melee Weapon . | . . . . . Unidentified Prototypes 1 | . . . 1 . Parts Lost 36 | . . 3 13 20 Power 5 | . . . 3 2 Propulsion 11 | . . . 5 6 Utility 15 | . . 2 4 9 Weapon 5 | . . 1 1 3 Highest Loss Streak 8 | . . 2 8 7 To Critical Strikes . | . . . . . Average Backups 12 | 1 11 13 11 12 Power . | . 1 . . . Propulsion 4 | . 3 6 3 2 Utility 3 | . 3 2 1 4 Weapon 4 | . 2 3 5 5 Tool/Special . | . . . . . Unused Backups 13 | . 3 3 . 7 Power 2 | . 1 1 . . Propulsion 3 | . 1 . . 2 Utility 5 | . 1 2 . 2 Weapon 3 | . . . . 3 Tool/Special . | . . . . . Average Slot Usage (%) 90 | . 100 98 91 69 Engine 11 | . 14 13 8 5 Treads 21 | . 28 27 26 1 Leg 2 | . . . . 10 Device 13 | . 14 12 14 14 Storage 13 | . 14 14 17 7 Processor 1 | . . . . 6 Protection 2 | . . . 5 6 Energy Cannon 1 | . . . 3 3 Ballistic Gun 16 | . 27 25 6 . Impact Weapon 3 | . . . 7 9 Slashing Weapon 1 | . . 2 . 2 Peak Build Rating 54 | 7 11 15 30 54 Average Rating 22 | 5 9 12 24 46 On Entrance 12 | . 7 11 14 28 Avg Prop Armor Cover (%) 15 | . . . . 15 Naked Turns . | . . . . . Heaviest Build 54 | 15 30 31 54 54 Greatest Support 69 | 40 46 46 69 66 Greatest Overweight (x) 3 | 3 . . . 2 Average Overweight (x) . | . . . . . Largest Inventory Capacity 15 | 8 15 15 15 15 Average Capacity 14 | 7 14 15 15 15 Most Carried 15 | 3 15 15 15 15 Average Carried 13 | 1 11 14 13 13 Final Capacity 15 | 8 15 15 15 15 Final Carried 15 | 3 15 15 14 15 Class Distribution -------------------- 92% | Mutant 7% | Scavenger-Gladiator Dominant Class ---------------- Mutant | -10/Materials Mutant | -10/Subcaves Mutant | -8/Materials Mutant | -7/Factory Resources | -11 -10 -10 -8 -7 ----------- Run | Yrd Mat Sub Mat Fac Matter Collected 2016 | 316 340 443 597 320 Remotely . | . . . . . Salvage Created 3153 | 119 313 508 813 1400 Parts 174 | 7 32 35 44 56 Haulers Intercepted 5 | . 1 . 1 3 Recyclers Shooed 2 | . . . 2 . Parts Field Recycled . | . . . . . Retrieved Matter . | . . . . . Parts Self-Destructed 20 | . . 20 . . Prevented . | . . . . . Parts Restored . | . . . . . Kills | -11 -10 -10 -8 -7 ------- Run | Yrd Mat Sub Mat Fac Combat Hostiles Destroyed 71 | . 8 12 25 26 Melee 14 | . . . 5 9 Guns 25 | . 8 12 5 . Cannons 10 | . . . 3 7 AOE 11 | . . . 11 . Classes Destroyed 16 | 2 6 1 4 3 Worker 5 | . 1 . 3 1 Builder 6 | . 1 . 1 4 Tunneler 2 | 2 . . . . Hauler 5 | . 1 . 1 3 Recycler 1 | 1 . . . . Watcher 4 | . 1 . 1 2 Swarmer 21 | . 6 2 7 6 Grunt 22 | . 2 1 12 7 Brawler 3 | . . . 3 . Duelist 4 | . . . 1 3 Protector 1 | . . . 1 . Sentry 6 | . . . 1 5 Hunter 1 | . . . . 1 Programmer 3 | . . . . 3 Heavy 1 | . . . . 1 Subdweller 9 | . . 9 . . Best Kill Streak 8 | 3 3 2 8 6 Combat Bots Only 6 | . 3 2 6 6 Max Kills in Single Turn 5 | 1 2 2 5 1 Gunslinging 1 | . . 1 . . Exploded 4 | . . . 4 . Melee 1 | . . . 1 1 Uniques/NPCs Destroyed . | . . . . . Combat | -11 -10 -10 -8 -7 -------- Run | Yrd Mat Sub Mat Fac Hostile Shots Fired 633 | . 16 63 164 390 Missed 190 | . 2 25 36 127 Hits 443 | . 14 38 128 263 Melee 19 | . . . 13 6 Projectile 424 | . 14 38 115 257 Critical Strikes 8 | . 1 1 4 2 Part Disruptions 1 | . . . . 1 Damage Taken 6569 | . 119 883 2052 3515 Core 1176 | . 37 164 261 714 Absorbed by Shields . | . . . . . Core Remaining (%) 57 | 100 . 19 52 . Volleys Fired 140 | 6 24 39 47 24 Largest 2 | 2 2 2 2 1 Hottest 160 | 40 40 40 160 80 Shots Fired 245 | 12 48 78 83 24 Gun 200 | 12 48 78 62 . Cannon 39 | . . . 15 24 Launcher 6 | . . . 6 . Special . | . . . . . Kinetic 206 | 12 48 78 68 . Thermal 39 | . . . 15 24 Explosive . | . . . . . Electromagnetic . | . . . . . Robot Hit Streak 14 | 3 7 14 6 11 Robot Miss Streak 4 | 2 4 3 3 2 Penetration Max . | . . . . . Secondary Targets 2 | . . 1 1 . Max Gunslinging Chain 1 | . . 1 1 . Shots Hit Robots 237 | 7 24 55 67 84 Core Hits 110 | 3 16 24 45 22 Critical Kills 2 | . 1 . 1 . Critical Parts Destroyed 13 | . . . 1 12 Critical Strikes 16 | . 1 . 2 13 Destroy 1 | . 1 . . . Smash 14 | . . . 2 12 Sever 1 | . . . . 1 Melee Attacks 167 | . 2 13 42 110 Impact 134 | . . . 38 96 Slashing 33 | . 2 13 4 14 Piercing . | . . . . . Sneak Attacks 11 | . . . 3 8 Combat Hostiles . | . . . . . Follow-up Attacks 10 | . . . 3 7 Damage Inflicted 7664 | 91 358 679 3030 3506 Guns 1540 | 88 347 679 426 . Cannons 684 | . . . 208 476 Explosions 1178 | . . . 1178 . Melee 4248 | . . . 1218 3030 Ramming 14 | 3 11 . . . Kinetic 2718 | 88 347 679 1604 . Thermal 684 | . . . 208 476 Explosive . | . . . . . Electromagnetic . | . . . . . Impact 3761 | . . . 1218 2543 Slashing 487 | . . . . 487 Piercing . | . . . . . Highest Corruption 10 | . . . 10 4 Average Corruption 2 | . . . 4 1 Corruption Purged . | . . . . . Corruption Blocked . | . . . . . Effects 21 | . . . 16 5 Message Errors 4 | . . . 4 . Matter Fused 5 | . . . 4 1 Heat Flow Errors 4 | . . . 3 1 Data Loss (minor) 5 | . . . 3 2 Data Loss (major) 1 | . . . . 1 Misfires 1 | . . . 1 . Alerts 1 | . . . 1 . Overload Shots . | . . . . . Overflow Damage 975 | . . . 118 857 Projectiles 40 | . . . 20 20 Explosions . | . . . . . Melee 935 | . . . 98 837 Knockbacks 7 | . . . . 7 Impact 7 | . . . . 7 Kinetic . | . . . . . Secondary . | . . . . . Self-Inflicted Damage 48 | . . . 48 . Shots 1 | . . . 1 . Rammed 6 | 2 3 . 1 . Targets Rammed 6 | 2 3 . 1 . Kicked . | . . . . . Crushed . | . . . . . Highest Temperature 179 | . . . 105 179 Average Temperature 60 | . . . 33 72 Received Heat Transfer 1539 | . 6 183 891 459 Siege Activations . | . . . . . Martial Activations . | . . . . . Shielding Activations . | . . . . . Robots Disrupted . | . . . . . Combat Hostiles . | . . . . . Robots Corrupted 14 | . . . 1 13 Combat Hostiles 11 | . . . 1 10 Parts Fried 29 | . . . 3 26 Impact Corruptions 40 | . . . 5 35 Robots Melted . | . . . . . Combat Hostiles . | . . . . . Parts Melted 1 | . . . . 1 Heat Transferred 1250 | . . . 350 900 Parts Sabotaged . | . . . . . Parts Stolen . | . . . . . Parts Stripped . | . . . . . Power Chain Reactions . | . . . . . Alert | -11 -10 -10 -8 -7 ------- Run | Yrd Mat Sub Mat Fac Maximum Alert Level 2 | . . . 2 1 Low Security (%) 75 | 100 100 . 68 59 Level 1 19 | . . . 13 40 Level 2 5 | . . . 18 . Level 3 . | . . . . . Level 4 . | . . . . . Level 5 . | . . . . . High Security . | . . . . . Max Security . | . . . . . Peak Influence 461 | 10 71 . 461 279 Initial 113 | . . . . 113 Average 122 | 1 17 . 191 158 Influence Increases 2058 | 15 248 115 895 785 Destroy 0b10 Robot/C 1220 | . 160 60 480 520 Destroy 0b10 Robot/NC 120 | 15 20 . 35 50 Destroy Leader 248 | . 34 10 74 130 Successful Hack 50 | . 32 . 6 12 Disable Machine 45 | . . . 30 15 Anti-Garrison Action 150 | . . . 150 . Destroy Structure 105 | . 2 . 75 28 Lose Combat Pursuer 120 | . . 45 45 30 Influence Decreases 1846 | 15 248 115 645 823 Entered New Map 137 | . . . . 137 Time Decay 1229 | 15 248 115 365 486 Lost Part 330 | . . . 130 200 Purge Threat 150 | . . . 150 . Squads Dispatched 14 | . . . 4 10 Investigation 4 | . . . 1 3 Extermination 2 | . . . . 2 Reinforcement 3 | . . . 1 2 Assault 2 | . . . 2 . Garrison 3 | . . . . 3 Intercept . | . . . . . Searches Triggered . | . . . . . Construction Impeded . | . . . . . Haulers Reinforced . | . . . . . Active Scanning Responses . | . . . . . Cargo Convoy Interrupts 1 | . . . . 1 Stealth | -11 -10 -10 -8 -7 --------- Run | Yrd Mat Sub Mat Fac Distress Signals 4 | . 1 . 3 . Communications Jammed . | . . . . . Distress Signals . | . . . . . Times Spotted 110 | . 14 17 38 41 Peak Tracking Total 8 | . 4 2 8 8 Tactical Retreats 7 | . . 3 3 1 Traps | -11 -10 -10 -8 -7 ------- Run | Yrd Mat Sub Mat Fac Traps Triggered 3 | . . 3 . . Indirectly . | . . . . . Trap Hack Attempts . | . . . . . Triggered . | . . . . . Disarmed . | . . . . . Reprogrammed . | . . . . . Reused . | . . . . . Traps Extracted . | . . . . . Installed 1 | . . 1 . . Triggered . | . . . . . Most Traps Carried 1 | . . 1 . . Machines | -11 -10 -10 -8 -7 ---------- Run | Yrd Mat Sub Mat Fac Machines Disabled 5 | . . 1 3 1 Max in Single Turn 2 | . . 1 2 1 Garrison Access 1 | . . . 1 . Machines Repaired . | . . . . . Machines Dismantled . | . . . . . Machines Sabotaged . | . . . . . Overloaded Fab Kills . | . . . . . Hacking | -11 -10 -10 -8 -7 --------- Run | Yrd Mat Sub Mat Fac Machines Accessed 26 | . 8 3 7 8 Terminals 15 | . 6 . 4 5 Fabricators . | . . . . . Repair Stations . | . . . . . Recycling Units 3 | . 2 . 1 . Scanalyzers 2 | . . . 1 1 Garrison Access 3 | . . . 1 2 Total Hacks 56 | . 19 3 19 15 Successful 21 | . 7 3 9 2 Failed 35 | . 12 . 10 13 Catastrophic 9 | . 2 . 1 6 Database Lockouts . | . . . . . Manual 25 | . 11 . 8 6 Terminals 35 | . 15 . 12 8 Fabricators . | . . . . . Repair Stations . | . . . . . Recycling Units 6 | . 4 . 2 . Scanalyzers 4 | . . . 2 2 Garrison Access 8 | . . . 3 5 Terminal Hacks 12 | . 4 3 4 1 Record 1 | . . 1 . . Robot Analysis 3 | . 2 . . 1 Prototype ID Bank 3 | . 1 . 2 . Open Door 1 | . . 1 . . Branch Access Points 1 | . . . 1 . Unreport Threat 1 | . . . 1 . Locate Traps 1 | . 1 . . . Proto ID Catalog 1 | . . 1 . . Fabricator Hacks . | . . . . . Repair Station Hacks . | . . . . . Recycling Unit Hacks 2 | . 1 . 1 . Retrieve Components 2 | . 1 . 1 . Scanalyzer 3 | . . . 2 1 Retrieve Study 3 | . . . 2 1 Garrison Access Hacks . | . . . . . Unauthorized Hacks 4 | . 2 . 2 . Terminals 4 | . 2 . 2 . Botnet 2 | . 1 . 1 . Operators 2 | . 1 . 1 . Fabricators . | . . . . . Repair Stations . | . . . . . Recycling Units . | . . . . . Scanalyzers . | . . . . . Garrison Access . | . . . . . Data Cores Recovered . | . . . . . Used . | . . . . . Hacking Detections 19 | . 7 . 5 7 Full Trace Events 5 | . 2 . . 3 Feedback Events 1 | . . . . 1 Corruption 1 | . . . . 1 Feedback Blocked . | . . . . . Robot Schematics Acquired . | . . . . . Robots Built . | . . . . . Authchips . | . . . . . Time . | . . . . . Total Robot Build Rating . | . . . . . Part Schematics Acquired . | . . . . . Parts Built . | . . . . . Authchips . | . . . . . Time . | . . . . . Total Part Build Rating . | . . . . . Part Studies Acquired 3 | . . . 2 1 Parts Repaired . | . . . . . Time . | . . . . . Parts Recycled . | . . . . . Recycled Matter . | . . . . . Retrieved Matter . | . . . . . Retrieved Components 11 | . 1 . 10 . Parts Scanalyzed . | . . . . . Part Schematics Acquired . | . . . . . Parts Damaged . | . . . . . Bothacking | -11 -10 -10 -8 -7 ------------ Run | Yrd Mat Sub Mat Fac Used RIF Installer . | . . . . . Robots Hacked . | . . . . . Non-combat . | . . . . . Combat . | . . . . . Robot Hacks Applied . | . . . . . Relay Couplers Released 2 | . . . 2 . Machine Destruction 2 | . . . 2 . Fabnet Peak Effective % . | . . . . . Robots Rewired . | . . . . . Allies Hacked . | . . . . . Hacks Repelled . | . . . . . Allies | -11 -10 -10 -8 -7 -------- Run | Yrd Mat Sub Mat Fac Total Allies . | . . . . . Largest Group . | . . . . . Highest-Rated Group . | . . . . . Highest-Rated Ally . | . . . . . Total Orders . | . . . . . Ally Attacks . | . . . . . Total Damage . | . . . . . Kills . | . . . . . Allies Corrupted . | . . . . . Allies Melted . | . . . . . Intel | -11 -10 -10 -8 -7 ------- Run | Yrd Mat Sub Mat Fac Active Infowar (turns) 4580 | 33 1003 1838 746 960 Optics 532 | . . 95 437 . Sensors 364 | . . . . 364 Terrain 1468 | . . 1182 . 286 Seismic 2216 | 33 1003 561 309 310 Robot Analysis Total 3 | . 2 . . 1 Derelict Logs Recovered 1 | . . 1 . . Drone Launches . | . . . . . Drone Recoveries . | . . . . . Exploration | -11 -10 -10 -8 -7 ------------- Run | Yrd Mat Sub Mat Fac Turns Passed 5445 | 108 1003 2038 1035 1261 Spaces Moved 2817 | 46 492 996 453 830 Core 9 | 9 . . . . Treads 2013 | 37 492 996 453 35 Legs 795 | . . . . 795 Wheels . | . . . . . Hover . | . . . . . Flight . | . . . . . Fastest Speed 50 | 50 160 160 160 90 Average Speed 144 | 156 160 160 160 106 Slowest Speed 260 | 200 160 160 160 260 Overloaded Moves . | . . . . . Propulsion Burnouts . | . . . . . Robots Hopped . | . . . . . Potential Cave-ins . | . . . . . Cave-ins Triggered . | . . . . . Exploration Rate (%) 47 | 4 99 57 45 30 Regions Visited 4 Branch Regions 1 Pre-discovered Areas 2 | . . 2 . . Known Exits Taken . | . . . . . Unknown Exits Taken 4 | 1 1 1 1 . Scrap Searched 2 | . . 2 . . Spaces Dug 75 | . 1 . 46 28 Terrain Destroyed 106 | . 1 . 77 28 Melee 33 | . 1 . 4 28 Projectile 4 | . . . 4 . AOE 69 | . . . 69 . Terrain Rammed . | . . . . . Walls Destroyed . | . . . . . Machines Disabled . | . . . . . Actions | -11 -10 -10 -8 -7 --------- Run | Yrd Mat Sub Mat Fac Total 3687 | 65 656 1337 608 1021 Wait 395 | 2 112 249 9 23 Move 2813 | 45 491 995 452 830 Hop . | . . . . . Pick Up 52 | 2 14 8 19 9 Fast Attach 25 | 7 . 2 2 14 Attach 29 | . . 5 15 9 Detach 5 | . . 1 . 4 Swap 46 | 1 5 13 21 6 Drop 27 | . 5 11 5 6 Fire 140 | 6 24 39 47 24 Melee 148 | . 2 13 37 96 Ram . | . . . . . Kick . | . . . . . Crush 6 | 2 3 . 1 . Escape Stasis . | . . . . . Rewire . | . . . . . Trap 1 | . . 1 . . Miscellaneous . | . . . . . Route ------- -11/Scrapyard -10/Materials (discovered 5 exits: [*Mat x3] / [*Min] / *Sub) -10/Subcaves -8/Materials -7/Factory History --------- Turn | Location | Event 15 | -11/Scrapyard | Discovered new exit (range 15) 109 | -11/Scrapyard | Entered Materials 310 | -10/Materials | Build established: Mutant 318 | -10/Materials | Discovered new exit (range 16) 649 | -10/Materials | Discovered new exit (range 4) 778 | -10/Materials | Discovered new exit (range 13) 934 | -10/Materials | Discovered new exit (range 16) 1088 | -10/Materials | Discovered new exit (range 9) 1112 | -10/Materials | Entered Subcaves 1113 | -10/Subcaves | Approached by a straggling Scientist 1547 | -10/Subcaves | Shifting Twisted Machinery released Humpback 1548 | -10/Subcaves | Shifting Twisted Machinery released Spk. Treads 1654 | -10/Subcaves | Core integrity fell below 50% 2211 | -10/Subcaves | Learned location of Zion (-7) 2211 | -10/Subcaves | Met a Zionite searching for "candidates" 2270 | -10/Subcaves | Visited 4L-MR0's lab 2325 | -10/Subcaves | Found Arachnoskeleton 2378 | -10/Subcaves | A swath of the cavern ceiling suddenly collapsed 2407 | -10/Subcaves | Disturbed a concealed Subdweller 2521 | -10/Subcaves | A swath of the cavern ceiling suddenly collapsed 3033 | -10/Subcaves | Core integrity fell below 20% 3098 | -10/Subcaves | Discovered new exit (range 13) 3150 | -10/Subcaves | Entered Materials 3150 | -8/Materials | Evolved 4 slots: Propulsion x1, Utility x3 3445 | -8/Materials | Lost 4 parts (1p1n1u1w) 3971 | -8/Materials | System corruption reached 10% 4001 | -8/Materials | Lost 8 parts (2p3n3u) 4071 | -8/Materials | Discovered new exit (range 8) 4185 | -8/Materials | Entered Factory 4185 | -7/Factory | Evolved 2 slots: Utility x1, Weapon x1 4195 | -7/Factory | Attached Arachnoskeleton, gained temporary slots: Propulsion x3 4690 | -7/Factory | Noticed a derelict Sapper rigging charges 4882 | -7/Factory | Lost 5 parts (1p2u2w) 4896 | -7/Factory | Core integrity fell below 50% 4957 | -7/Factory | Cargo convoy interrupted 5026 | -7/Factory | Lost 5 parts (2n2u1w) 5312 | -7/Factory | Build established: Scavenger-Gladiator 5441 | -7/Factory | Core integrity fell below 20% 5446 | -7/Factory | Destroyed by X-57 Shotgunner with High-powered Shotgun Last Messages --------------- 05436_ Axe follow-up attack on H-61 Shepherd. 05437_ H-61 Shepherd calls for reinforcements. 05437_ ALERT: Hostile activity reported, dispatching reinforcements to area. 05438_ Carbon-fiber Leg destroyed. 05440_ Imp. Deuterium Engine destroyed. 05440_ Lyr. Medium Armor Plating destroyed. 05443_ Powered Hammer+ follow-up attack on H-61 Shepherd. 05443_ Destroyed Dynamic Insulation System. 05443_ H-61 Shepherd system corrupted by crushing effect. 05443_ Imp. Sensor Array destroyed. 05444_ H-61 Shepherd system terminally corrupted. 05444_ Transmission Jammer fried. 05444_ Cooling System fried. 05444_ Targeting Computer fried. 05445_ Axe follow-up attack on G-47 Trooper. 05445_ Powered Hammer+ follow-up attack on G-47 Trooper. 05445_ G-47 Trooper destroyed. 05445_ Microactuators destroyed. 05446_ Myomer Leg destroyed. Map ----- +----------------------------------------------------+ | | | | | | | | | | | | | | | | | | | | | | | | | | | | | | | | | | | | | | | ???????????????????###########################???? | | ??????????????????? [ # #???? | | ??????????????????# """ # #???? | | ??????????????????# """gg # #??## | | ??????????????????# """ g[% # #??#= | | ??????????????????# xxg%"" "" ??? ????#% | | ??????????????????# ] =@""G"" ????? ????### | | ???????????????####+#####;#;###########+####### | | ?????????? | | ?????????? | | ?????????? u | | ???????????################### ################ | | ?????????????????????????????#+#??????????????###+ | | ???????????????????????????? ??????????????? | | ?????????????????????????? ????????????? | | ???????????????????????? #?????????? | | ??????????????????????# #?????????? | | ??????????????????????# """"""" #?????????# | | ??????????????????????# """"""" #?????????#! | | ??????????????????????# """"""" #?????????# | | ??????????????????????+ """"""" #?????????#### | | ??????????????????????####?????????##????????????? | | ?????????????????????????????????????????????????? | | ?????????????????????????????????????????????????? | | ?????????????????????????????????????????????????? | | ?????????????????????????????????????????????????? | | ?????????????????????????????????????????????????? | | ?????????????????????????????????????????????????? | | ?????????????????????????????????????????????????? | | ?????????????????????????????????????????????????? | | ?????????????????????????????????????????????????? | +----------------------------------------------------+ Best States ------------- Heat Dissipation 34 Coolant Potential 65 Energy Generation 16 Energy Capacity 290 Matter Stores 500 Matter Capacity 500 Sight Range 21 Robot Scan Range 15 Terrain Scan Range 16 Terrain Scan Density 210 Base Temperature (-) 100 Armor Coverage 800 Melee Speed Boost 20 Evasion (%) 57 Melee Accuracy 5 Recoil Reduction 3 Particle Charging 15 Item Schematics ----------------- None Robot Schematics ------------------ None Fabricated ------------ Nothing Repaired ---------- Nothing Studied --------- Hvy. Assault Rifle | -8/Materials | Hacked Imp. Treads | -8/Materials | Hacked Powered Hammer | -7/Factory | Hacked Alien Tech Used ----------------- None Achievements -------------- None Challenges ------------ None Game ------ Seed LaunchImprinterLattice Manual? 0 Play Time 00:59:20 Cumulative 251.8 hours Start 2025.12.28 @ 15:15:23 End 2025.12.28 @ 17:20:54 Sessions 1 Manual Loads 0 Difficulty Rogue Special Mode None Game No. 189 Rogue 189 Adventurer 0 Explorer 0 Win Type - Total 7 Types 5/0/0/2/0/0/0/0/0/0 Lore% 76 Gallery% 70 Achievement% 55 Wizard Run 0 Options --------- Layout 0 ASCII 0 Keyboard 1 Movement Numpad Keybinds 0 Fullscreen 1 Font 24/Terminus Map View 76x50 Zoom Use 0% Tactical HUD 1 Map Filters NONE Filters NONE Steam 1 RUN: 6460eb5f-27e3-4eac-a29e-cf7c9fd15dcf